[Event "Titled Tuesday Blitz March 07 Early 2023"]
[White "Jakubowski, Krzysztof"]
[Black "Bortnyk, Olexandr"]
[WhiteFideId "1112848"]
[BlackFideId "14120828"]
[WhiteElo "2359"]
[BlackElo "2734"]
[Result "0-1"]
[Round "02"]
[TimeControl "180+2"]
[Date "2023.03.07"]
[WhiteClock "0:00:01"]
[BlackClock "0:00:49"]

1. e4 {[%clk 0:03:00]}  Nf6 {[%clk 0:02:57]} 2. e5 {[%clk 0:03:00]}  Nd5 {[%clk 0:02:56]} 3. c4 {[%clk 0:03:01]}  Nb6 {[%clk 0:02:56]} 4. d4 {[%clk 0:03:01]}  d6 {[%clk 0:02:57]} 5. exd6 {[%clk 0:03:00]}  exd6 {[%clk 0:02:58]} 6. Nc3 {[%clk 0:03:00]}  Be7 {[%clk 0:02:58]} 7. h3 {[%clk 0:03:00]}  O-O {[%clk 0:02:58]} 8. Bd3 {[%clk 0:03:00]}  Na6 {[%clk 0:02:48]} 9. Nf3 {[%clk 0:02:57]}  c6 {[%clk 0:02:38]} 10. O-O {[%clk 0:02:56]}  d5 {[%clk 0:02:26]} 11. c5 {[%clk 0:02:56]}  Nd7 {[%clk 0:02:26]} 12. a3 {[%clk 0:02:55]}  Nc7 {[%clk 0:02:24]} 13. Qc2 {[%clk 0:02:53]}  g6 {[%clk 0:02:24]} 14. b4 {[%clk 0:02:52]}  Ne6 {[%clk 0:02:19]} 15. Ne2 {[%clk 0:02:41]}  Bf6 {[%clk 0:02:15]} 16. Be3 {[%clk 0:02:37]}  a6 {[%clk 0:02:14]} 17. Rae1 {[%clk 0:02:33]}  Bg7 {[%clk 0:02:14]} 18. Nh2 {[%clk 0:02:31]}  f5 {[%clk 0:02:12]} 19. f4 {[%clk 0:02:19]}  Nf6 {[%clk 0:02:10]} 20. Nf3 {[%clk 0:02:17]}  Ne4 {[%clk 0:02:09]} 21. Kh1 {[%clk 0:02:05]}  Bd7 {[%clk 0:01:59]} 22. Ne5 {[%clk 0:01:55]}  Be8 {[%clk 0:01:58]} 23. Bg1 {[%clk 0:01:46]}  Qh4 {[%clk 0:01:48]} 24. Rb1 {[%clk 0:01:33]}  Bh6 {[%clk 0:01:37]} 25. Bh2 {[%clk 0:01:19]}  Nf2+ {[%clk 0:01:30]} 26. Kg1 {[%clk 0:01:18]}  Ne4 {[%clk 0:01:29]} 27. Rf3 {[%clk 0:01:11]}  Kh8 {[%clk 0:01:28]} 28. Rbf1 {[%clk 0:01:09]}  Rc8 {[%clk 0:01:27]} 29. Kh1 {[%clk 0:00:57]}  Rc7 {[%clk 0:01:26]} 30. Qb2 {[%clk 0:00:51]}  Bg7 {[%clk 0:01:24]} 31. Ng1 {[%clk 0:00:49]}  Re7 {[%clk 0:01:19]} 32. Re3 {[%clk 0:00:45]}  Nxd4 {[%clk 0:01:14]} 33. g3 {[%clk 0:00:27]}  Qh6 {[%clk 0:00:58]} 34. Qxd4 {[%clk 0:00:25]}  g5 {[%clk 0:00:58]} 35. Ngf3 {[%clk 0:00:16]}  Qxh3 {[%clk 0:00:55]} 36. Nxg5 {[%clk 0:00:14]}  Bxe5 {[%clk 0:00:49]} 37. Qxe5+ {[%clk 0:00:10]}  Rxe5 {[%clk 0:00:50]} 38. Nxh3 {[%clk 0:00:09]}  Nf2+ {[%clk 0:00:51]} 39. Nxf2 {[%clk 0:00:06]}  Rxe3 {[%clk 0:00:51]} 40. Kg2 {[%clk 0:00:03]}  Bh5 {[%clk 0:00:52]} 41. Rc1 {[%clk 0:00:02]}  Bf3+ {[%clk 0:00:50]} 42. Kf1 {[%clk 0:00:02]}  Be4 {[%clk 0:00:51]} 43. Rd1 {[%clk 0:00:01]}  Re8 {[%clk 0:00:50]} 44. Bxe4 {[%clk 0:00:01]}  fxe4 {[%clk 0:00:51]} 45. a4 {[%clk 0:00:01]}  Rb3 {[%clk 0:00:50]} 46. Re1 {[%clk 0:00:01]}  e3 {[%clk 0:00:49]} 47. Ng4 {[%clk 0:00:01]}  d4 {[%clk 0:00:50]} 48. Ne5 {[%clk 0:00:01]}  d3 {[%clk 0:00:49]} 0-1


[Site "https://www.chess.com"]

[Event "Titled Tuesday Blitz March 07 Early 2023"]
[White "Oparin, Grigoriy"]
[Black "Domingo Nunez, Ruben"]
[WhiteFideId "24125890"]
[BlackFideId "22245570"]
[WhiteElo "2641"]
[BlackElo "2404"]
[Result "1-0"]
[Round "02"]
[TimeControl "180+2"]
[Date "2023.03.07"]
[WhiteClock "0:00:19"]
[BlackClock "0:00:09"]

1. e4 {[%clk 0:03:00]}  d6 {[%clk 0:02:54]} 2. d4 {[%clk 0:03:00]}  Nf6 {[%clk 0:02:54]} 3. Bd3 {[%clk 0:03:00]}  e5 {[%clk 0:02:51]} 4. c3 {[%clk 0:02:58]}  d5 {[%clk 0:02:51]} 5. dxe5 {[%clk 0:02:54]}  Nxe4 {[%clk 0:02:51]} 6. Nf3 {[%clk 0:02:53]}  Nc5 {[%clk 0:02:51]} 7. O-O {[%clk 0:02:53]}  Bg4 {[%clk 0:02:49]} 8. h3 {[%clk 0:02:49]}  Bh5 {[%clk 0:02:49]} 9. Bc2 {[%clk 0:02:46]}  Nc6 {[%clk 0:02:48]} 10. Re1 {[%clk 0:02:47]}  Be7 {[%clk 0:02:37]} 11. Bf4 {[%clk 0:02:45]}  Qd7 {[%clk 0:02:36]} 12. Nbd2 {[%clk 0:02:44]}  d4 {[%clk 0:02:30]} 13. Ne4 {[%clk 0:01:55]}  O-O-O {[%clk 0:01:58]} 14. Nxc5 {[%clk 0:01:33]}  Bxc5 {[%clk 0:01:59]} 15. Be4 {[%clk 0:01:33]}  Rhe8 {[%clk 0:01:52]} 16. Qa4 {[%clk 0:01:14]}  Bg6 {[%clk 0:01:39]} 17. Bxc6 {[%clk 0:01:10]}  Qxc6 {[%clk 0:01:38]} 18. Qxc6 {[%clk 0:01:10]}  bxc6 {[%clk 0:01:39]} 19. cxd4 {[%clk 0:01:10]}  Bxd4 {[%clk 0:01:38]} 20. Nxd4 {[%clk 0:01:11]}  Rxd4 {[%clk 0:01:38]} 21. Be3 {[%clk 0:01:11]}  Ra4 {[%clk 0:01:21]} 22. b3 {[%clk 0:01:11]}  Ra5 {[%clk 0:01:22]} 23. f4 {[%clk 0:01:12]}  Rd8 {[%clk 0:01:14]} 24. Kf2 {[%clk 0:01:09]}  Kb7 {[%clk 0:01:08]} 25. g4 {[%clk 0:01:07]}  Bc2 {[%clk 0:01:03]} 26. Re2 {[%clk 0:01:06]}  Bd3 {[%clk 0:01:04]} 27. Rd2 {[%clk 0:01:06]}  Rad5 {[%clk 0:01:04]} 28. Rc1 {[%clk 0:01:01]}  Be4 {[%clk 0:01:02]} 29. Rxd5 {[%clk 0:01:00]}  Rxd5 {[%clk 0:00:58]} 30. Rc4 {[%clk 0:00:40]}  Bb1 {[%clk 0:00:57]} 31. a3 {[%clk 0:00:40]}  Bd3 {[%clk 0:00:55]} 32. Rc3 {[%clk 0:00:31]}  Be4 {[%clk 0:00:53]} 33. Bc5 {[%clk 0:00:30]}  Rd3 {[%clk 0:00:46]} 34. Rxd3 {[%clk 0:00:31]}  Bxd3 {[%clk 0:00:47]} 35. f5 {[%clk 0:00:31]}  Bc2 {[%clk 0:00:42]} 36. b4 {[%clk 0:00:27]}  Bb3 {[%clk 0:00:40]} 37. Ke3 {[%clk 0:00:28]}  a6 {[%clk 0:00:39]} 38. Kf4 {[%clk 0:00:27]}  Kc8 {[%clk 0:00:40]} 39. Bf8 {[%clk 0:00:27]}  g6 {[%clk 0:00:37]} 40. Kg5 {[%clk 0:00:28]}  Kd7 {[%clk 0:00:35]} 41. Kf6 {[%clk 0:00:24]}  Bc4 {[%clk 0:00:21]} 42. Bc5 {[%clk 0:00:18]}  Ke8 {[%clk 0:00:09]} 43. e6 {[%clk 0:00:17]}  fxe6 {[%clk 0:00:09]} 44. fxe6 {[%clk 0:00:18]}  Bd3 {[%clk 0:00:09]} 45. g5 {[%clk 0:00:18]}  Bf5 {[%clk 0:00:07]} 46. h4 {[%clk 0:00:18]}  Bg4 {[%clk 0:00:08]} 47. Bd4 {[%clk 0:00:17]}  Bf5 {[%clk 0:00:07]} 48. Be5 {[%clk 0:00:17]}  Bg4 {[%clk 0:00:07]} 49. Bxc7 {[%clk 0:00:17]}  Bf5 {[%clk 0:00:07]} 50. Bd6 {[%clk 0:00:17]}  Bg4 {[%clk 0:00:08]} 51. Bc5 {[%clk 0:00:18]}  Bf5 {[%clk 0:00:08]} 52. e7 {[%clk 0:00:18]}  Bg4 {[%clk 0:00:08]} 53. Kg7 {[%clk 0:00:19]}  Bh5 {[%clk 0:00:08]} 54. Kxh7 {[%clk 0:00:19]}  Kf7 {[%clk 0:00:09]} 55. Kh6 {[%clk 0:00:18]}  Bg4 {[%clk 0:00:09]} 56. e8=Q+ {[%clk 0:00:18]}  Kxe8 {[%clk 0:00:09]} 57. Kxg6 {[%clk 0:00:19]} 1-0


[Site "https://www.chess.com"]

[Event "Titled Tuesday Blitz March 07 Early 2023"]
[White "Maze, Sebastien"]
[Black "Kramnik, Vladimir"]
[WhiteFideId "613762"]
[BlackFideId "4101588"]
[WhiteElo "2462"]
[BlackElo "2712"]
[Result "1/2-1/2"]
[Round "02"]
[TimeControl "180+2"]
[Date "2023.03.07"]
[WhiteClock "0:00:14"]
[BlackClock "0:00:05"]

1. e4 {[%clk 0:03:00]}  e5 {[%clk 0:02:59]} 2. Nf3 {[%clk 0:03:00]}  Nc6 {[%clk 0:02:59]} 3. Bb5 {[%clk 0:03:00]}  Nf6 {[%clk 0:02:59]} 4. Nc3 {[%clk 0:02:53]}  Bd6 {[%clk 0:02:57]} 5. d3 {[%clk 0:02:47]}  O-O {[%clk 0:02:55]} 6. a3 {[%clk 0:02:46]}  Nd4 {[%clk 0:02:50]} 7. Nxd4 {[%clk 0:02:40]}  exd4 {[%clk 0:02:49]} 8. Ne2 {[%clk 0:02:40]}  c5 {[%clk 0:02:39]} 9. O-O {[%clk 0:02:32]}  a6 {[%clk 0:02:34]} 10. Bc4 {[%clk 0:02:30]}  b5 {[%clk 0:02:34]} 11. Ba2 {[%clk 0:02:30]}  Bb7 {[%clk 0:02:34]} 12. Ng3 {[%clk 0:02:25]}  Bxg3 {[%clk 0:02:28]} 13. hxg3 {[%clk 0:02:03]}  Re8 {[%clk 0:02:26]} 14. Bg5 {[%clk 0:01:23]}  h6 {[%clk 0:02:25]} 15. Bxf6 {[%clk 0:01:22]}  Qxf6 {[%clk 0:02:24]} 16. f4 {[%clk 0:01:22]}  c4 {[%clk 0:02:15]} 17. Qg4 {[%clk 0:01:12]}  d5 {[%clk 0:01:58]} 18. e5 {[%clk 0:01:10]}  Qe6 {[%clk 0:01:56]} 19. Qh5 {[%clk 0:00:58]}  f5 {[%clk 0:01:48]} 20. exf6 {[%clk 0:00:55]}  Qxf6 {[%clk 0:01:47]} 21. Rae1 {[%clk 0:00:55]}  Qf7 {[%clk 0:01:46]} 22. Qf3 {[%clk 0:00:46]}  Rac8 {[%clk 0:01:39]} 23. f5 {[%clk 0:00:38]}  Rxe1 {[%clk 0:01:24]} 24. Rxe1 {[%clk 0:00:38]}  Re8 {[%clk 0:01:16]} 25. Rxe8+ {[%clk 0:00:30]}  Qxe8 {[%clk 0:01:15]} 26. Kf2 {[%clk 0:00:20]}  Qe5 {[%clk 0:01:01]} 27. Qf4 {[%clk 0:00:18]}  Qxf4+ {[%clk 0:00:56]} 28. gxf4 {[%clk 0:00:18]}  Kf7 {[%clk 0:00:53]} 29. g4 {[%clk 0:00:17]}  Kf6 {[%clk 0:00:52]} 30. Kg3 {[%clk 0:00:17]}  h5 {[%clk 0:00:51]} 31. gxh5 {[%clk 0:00:16]}  Kxf5 {[%clk 0:00:51]} 32. c3 {[%clk 0:00:14]}  cxd3 {[%clk 0:00:46]} 33. Bb1 {[%clk 0:00:13]}  Ke4 {[%clk 0:00:46]} 34. f5 {[%clk 0:00:08]}  dxc3 {[%clk 0:00:41]} 35. bxc3 {[%clk 0:00:07]}  Bc8 {[%clk 0:00:41]} 36. f6 {[%clk 0:00:06]}  gxf6 {[%clk 0:00:40]} 37. h6 {[%clk 0:00:07]}  Bf5 {[%clk 0:00:40]} 38. Kf2 {[%clk 0:00:07]}  Kf4 {[%clk 0:00:38]} 39. Ba2 {[%clk 0:00:05]}  Kg5 {[%clk 0:00:27]} 40. Bxd5 {[%clk 0:00:05]}  Kxh6 {[%clk 0:00:27]} 41. Bb7 {[%clk 0:00:04]}  a5 {[%clk 0:00:25]} 42. Bc6 {[%clk 0:00:04]}  Kg5 {[%clk 0:00:25]} 43. Ke3 {[%clk 0:00:03]}  Bg6 {[%clk 0:00:17]} 44. Bxb5 {[%clk 0:00:04]}  f5 {[%clk 0:00:17]} 45. Bc6 {[%clk 0:00:03]}  f4+ {[%clk 0:00:17]} 46. Kd2 {[%clk 0:00:04]}  Kg4 {[%clk 0:00:16]} 47. c4 {[%clk 0:00:04]}  f3 {[%clk 0:00:16]} 48. Ke3 {[%clk 0:00:04]}  Kg3 {[%clk 0:00:10]} 49. Bxf3 {[%clk 0:00:04]}  d2 {[%clk 0:00:10]} 50. Bd1 {[%clk 0:00:05]}  Be8 {[%clk 0:00:08]} 51. Kxd2 {[%clk 0:00:05]}  Kf4 {[%clk 0:00:07]} 52. Kc3 {[%clk 0:00:05]}  Ke5 {[%clk 0:00:07]} 53. Bc2 {[%clk 0:00:06]}  Bc6 {[%clk 0:00:06]} 54. Bd3 {[%clk 0:00:06]}  Bd7 {[%clk 0:00:06]} 55. Be2 {[%clk 0:00:06]}  Be8 {[%clk 0:00:04]} 56. Kd3 {[%clk 0:00:07]}  Kd6 {[%clk 0:00:03]} 57. Kd4 {[%clk 0:00:07]}  Bf7 {[%clk 0:00:03]} 58. c5+ {[%clk 0:00:07]}  Kc7 {[%clk 0:00:03]} 59. Bf3 {[%clk 0:00:08]}  Be6 {[%clk 0:00:03]} 60. Bd5 {[%clk 0:00:08]}  Bf5 {[%clk 0:00:03]} 61. Kc4 {[%clk 0:00:09]}  Bd7 {[%clk 0:00:02]} 62. Kd4 {[%clk 0:00:08]}  Be8 {[%clk 0:00:02]} 63. Ke5 {[%clk 0:00:08]}  Bd7 {[%clk 0:00:03]} 64. Kd4 {[%clk 0:00:08]}  Be8 {[%clk 0:00:03]} 65. Kc4 {[%clk 0:00:08]}  Bd7 {[%clk 0:00:03]} 66. Kc3 {[%clk 0:00:08]}  Be8 {[%clk 0:00:02]} 67. Be4 {[%clk 0:00:07]}  Bd7 {[%clk 0:00:02]} 68. Kc4 {[%clk 0:00:05]}  Be8 {[%clk 0:00:02]} 69. Bc2 {[%clk 0:00:04]}  Bd7 {[%clk 0:00:02]} 70. Kc3 {[%clk 0:00:04]}  Be8 {[%clk 0:00:02]} 71. Kd4 {[%clk 0:00:04]}  Bd7 {[%clk 0:00:02]} 72. Be4 {[%clk 0:00:05]}  Be8 {[%clk 0:00:02]} 73. Bd5 {[%clk 0:00:05]}  Bd7 {[%clk 0:00:02]} 74. Kc4 {[%clk 0:00:05]}  Be8 {[%clk 0:00:02]} 75. c6 {[%clk 0:00:05]}  Bxc6 {[%clk 0:00:02]} 76. Bxc6 {[%clk 0:00:05]}  Kxc6 {[%clk 0:00:02]} 77. a4 {[%clk 0:00:06]}  Kb6 {[%clk 0:00:02]} 78. Kd5 {[%clk 0:00:06]}  Kb7 {[%clk 0:00:03]} 79. Kc5 {[%clk 0:00:07]}  Ka7 {[%clk 0:00:03]} 80. Kb5 {[%clk 0:00:08]}  Kb7 {[%clk 0:00:03]} 81. Kxa5 {[%clk 0:00:09]}  Ka7 {[%clk 0:00:04]} 82. Kb5 {[%clk 0:00:10]}  Ka8 {[%clk 0:00:04]} 83. a5 {[%clk 0:00:11]}  Kb8 {[%clk 0:00:04]} 84. a6 {[%clk 0:00:12]}  Ka8 {[%clk 0:00:05]} 85. Ka5 {[%clk 0:00:13]}  Kb8 {[%clk 0:00:05]} 86. Kb6 {[%clk 0:00:14]}  Ka8 {[%clk 0:00:05]} 87. a7 {[%clk 0:00:14]} 1/2-1/2


[Site "https://www.chess.com"]

[Event "Titled Tuesday Blitz March 07 Early 2023"]
[White "Shimanov, Aleksandr"]
[Black "Zivkovic, Nemanja"]
[WhiteFideId "4198603"]
[BlackFideId "942154"]
[WhiteElo "2631"]
[BlackElo "2370"]
[Result "1-0"]
[Round "02"]
[TimeControl "180+2"]
[Date "2023.03.07"]
[WhiteClock "0:00:11"]
[BlackClock "0:00:14"]

1. c4 {[%clk 0:03:00]}  Nf6 {[%clk 0:02:57]} 2. g3 {[%clk 0:02:56]}  e6 {[%clk 0:02:57]} 3. Bg2 {[%clk 0:02:56]}  d5 {[%clk 0:02:57]} 4. Nf3 {[%clk 0:02:56]}  Be7 {[%clk 0:02:55]} 5. O-O {[%clk 0:02:56]}  O-O {[%clk 0:02:54]} 6. b3 {[%clk 0:02:55]}  b6 {[%clk 0:02:43]} 7. Bb2 {[%clk 0:02:54]}  Bb7 {[%clk 0:02:43]} 8. e3 {[%clk 0:02:47]}  dxc4 {[%clk 0:02:37]} 9. bxc4 {[%clk 0:02:47]}  c5 {[%clk 0:02:37]} 10. d3 {[%clk 0:02:43]}  Nc6 {[%clk 0:02:36]} 11. Qe2 {[%clk 0:02:44]}  Qc7 {[%clk 0:02:29]} 12. Nc3 {[%clk 0:02:43]}  a6 {[%clk 0:02:22]} 13. Rab1 {[%clk 0:02:41]}  Rfd8 {[%clk 0:02:20]} 14. Ba1 {[%clk 0:02:40]}  Rab8 {[%clk 0:02:18]} 15. Rfd1 {[%clk 0:02:35]}  h6 {[%clk 0:02:15]} 16. Ne1 {[%clk 0:02:28]}  Na5 {[%clk 0:02:13]} 17. Bxb7 {[%clk 0:02:23]}  Rxb7 {[%clk 0:02:14]} 18. f4 {[%clk 0:02:23]}  Nc6 {[%clk 0:02:02]} 19. Nf3 {[%clk 0:02:22]}  b5 {[%clk 0:01:58]} 20. cxb5 {[%clk 0:02:06]}  axb5 {[%clk 0:01:59]} 21. Nxb5 {[%clk 0:01:57]}  Qa5 {[%clk 0:01:58]} 22. Nc3 {[%clk 0:01:58]}  Rxb1 {[%clk 0:01:44]} 23. Rxb1 {[%clk 0:01:57]}  Nd5 {[%clk 0:01:43]} 24. Nxd5 {[%clk 0:01:55]}  exd5 {[%clk 0:01:44]} 25. Rd1 {[%clk 0:01:14]}  Ra8 {[%clk 0:01:42]} 26. Rd2 {[%clk 0:01:15]}  Nb4 {[%clk 0:01:34]} 27. Bc3 {[%clk 0:01:13]}  Qa3 {[%clk 0:01:32]} 28. Bxb4 {[%clk 0:01:13]}  Qxb4 {[%clk 0:01:31]} 29. Rc2 {[%clk 0:01:13]}  Bf6 {[%clk 0:01:25]} 30. Kg2 {[%clk 0:01:13]}  Ra3 {[%clk 0:01:23]} 31. e4 {[%clk 0:01:10]}  dxe4 {[%clk 0:01:09]} 32. dxe4 {[%clk 0:01:11]}  Bd4 {[%clk 0:01:10]} 33. e5 {[%clk 0:00:36]}  Qb7 {[%clk 0:00:43]} 34. e6 {[%clk 0:00:30]}  fxe6 {[%clk 0:00:36]} 35. Qxe6+ {[%clk 0:00:30]}  Kh8 {[%clk 0:00:36]} 36. Qe8+ {[%clk 0:00:29]}  Kh7 {[%clk 0:00:35]} 37. Qe2 {[%clk 0:00:29]}  Re3 {[%clk 0:00:27]} 38. Qd1 {[%clk 0:00:30]}  Qe4 {[%clk 0:00:26]} 39. a4 {[%clk 0:00:27]}  Ra3 {[%clk 0:00:20]} 40. Rd2 {[%clk 0:00:21]}  Kh8 {[%clk 0:00:15]} 41. Qe2 {[%clk 0:00:15]}  Re3 {[%clk 0:00:15]} 42. Qf1 {[%clk 0:00:14]}  Ra3 {[%clk 0:00:14]} 43. Re2 {[%clk 0:00:14]}  Qd5 {[%clk 0:00:13]} 44. Re8+ {[%clk 0:00:13]}  Kh7 {[%clk 0:00:14]} 45. Qb1+ {[%clk 0:00:14]}  g6 {[%clk 0:00:14]} 46. Re7+ {[%clk 0:00:10]}  Bg7 {[%clk 0:00:14]} 47. Qe4 {[%clk 0:00:11]}  Qxe4 {[%clk 0:00:13]} 48. Rxe4 {[%clk 0:00:11]}  Ra2+ {[%clk 0:00:13]} 49. Kh3 {[%clk 0:00:11]}  Bd4 {[%clk 0:00:13]} 50. Nxd4 {[%clk 0:00:11]}  Rxa4 {[%clk 0:00:14]} 51. Re7+ {[%clk 0:00:11]}  Kg8 {[%clk 0:00:14]} 52. Ne6 {[%clk 0:00:11]} 1-0


[Site "https://www.chess.com"]

[Event "Titled Tuesday Blitz March 07 Early 2023"]
[White "Perez Gormaz, Matias"]
[Black "Durarbayli, Vasif"]
[WhiteFideId "3406342"]
[BlackFideId "13402935"]
[WhiteElo "2362"]
[BlackElo "2543"]
[Result "0-1"]
[Round "02"]
[TimeControl "180+2"]
[Date "2023.03.07"]
[WhiteClock "0:00:05"]
[BlackClock "0:00:06"]

1. Nf3 {[%clk 0:03:00]}  c5 {[%clk 0:02:58]} 2. b3 {[%clk 0:03:00]}  Nc6 {[%clk 0:02:55]} 3. Bb2 {[%clk 0:03:00]}  d5 {[%clk 0:02:54]} 4. e3 {[%clk 0:02:58]}  a6 {[%clk 0:02:54]} 5. d4 {[%clk 0:02:45]}  cxd4 {[%clk 0:02:52]} 6. Nxd4 {[%clk 0:02:43]}  Nf6 {[%clk 0:02:51]} 7. Be2 {[%clk 0:02:40]}  Qc7 {[%clk 0:02:39]} 8. O-O {[%clk 0:02:35]}  Nxd4 {[%clk 0:02:33]} 9. Qxd4 {[%clk 0:02:19]}  Qxc2 {[%clk 0:02:20]} 10. Nd2 {[%clk 0:02:19]}  Qc7 {[%clk 0:02:05]} 11. Rac1 {[%clk 0:02:17]}  Qd8 {[%clk 0:01:59]} 12. Ba3 {[%clk 0:01:41]}  e6 {[%clk 0:01:40]} 13. Bxf8 {[%clk 0:01:40]}  Kxf8 {[%clk 0:01:38]} 14. Rc2 {[%clk 0:01:32]}  Bd7 {[%clk 0:01:38]} 15. Rfc1 {[%clk 0:01:29]}  Bc6 {[%clk 0:01:31]} 16. Nf3 {[%clk 0:01:24]}  Nd7 {[%clk 0:01:29]} 17. h4 {[%clk 0:01:10]}  Qe7 {[%clk 0:01:18]} 18. b4 {[%clk 0:00:55]}  f6 {[%clk 0:01:08]} 19. Qb2 {[%clk 0:00:49]}  Kf7 {[%clk 0:00:44]} 20. b5 {[%clk 0:00:48]}  axb5 {[%clk 0:00:44]} 21. Nd4 {[%clk 0:00:45]}  Ne5 {[%clk 0:00:39]} 22. Nxb5 {[%clk 0:00:25]}  Ra4 {[%clk 0:00:29]} 23. Nd4 {[%clk 0:00:24]}  Rha8 {[%clk 0:00:29]} 24. Qb1 {[%clk 0:00:24]}  Kg8 {[%clk 0:00:25]} 25. Rb2 {[%clk 0:00:24]}  R4a7 {[%clk 0:00:14]} 26. g3 {[%clk 0:00:23]}  f5 {[%clk 0:00:11]} 27. f4 {[%clk 0:00:21]}  Nd7 {[%clk 0:00:11]} 28. Bf1 {[%clk 0:00:10]}  Nf6 {[%clk 0:00:11]} 29. Bg2 {[%clk 0:00:10]}  h6 {[%clk 0:00:11]} 30. Bf3 {[%clk 0:00:10]}  Kh7 {[%clk 0:00:11]} 31. Qc2 {[%clk 0:00:10]}  Ra3 {[%clk 0:00:11]} 32. Kf2 {[%clk 0:00:10]}  Kg8 {[%clk 0:00:07]} 33. Rcb1 {[%clk 0:00:10]}  Kh7 {[%clk 0:00:06]} 34. Rc1 {[%clk 0:00:11]}  Kg8 {[%clk 0:00:05]} 35. Rcb1 {[%clk 0:00:11]}  Qd7 {[%clk 0:00:05]} 36. Rc1 {[%clk 0:00:11]}  Qd6 {[%clk 0:00:06]} 37. Qb1 {[%clk 0:00:11]}  Qd7 {[%clk 0:00:05]} 38. Qc2 {[%clk 0:00:11]}  Ne4+ {[%clk 0:00:03]} 39. Bxe4 {[%clk 0:00:11]}  fxe4 {[%clk 0:00:04]} 40. Qe2 {[%clk 0:00:10]}  e5 {[%clk 0:00:04]} 41. fxe5 {[%clk 0:00:09]}  Qh3 {[%clk 0:00:05]} 42. Ke1 {[%clk 0:00:02]}  Qxg3+ {[%clk 0:00:05]} 43. Kd2 {[%clk 0:00:02]}  Rf8 {[%clk 0:00:04]} 44. Rcc2 {[%clk 0:00:03]}  Rf2 {[%clk 0:00:03]} 45. e6 {[%clk 0:00:03]}  Rxe2+ {[%clk 0:00:04]} 46. Nxe2 {[%clk 0:00:04]}  Qxe3+ {[%clk 0:00:04]} 47. Kd1 {[%clk 0:00:04]}  Rd3+ {[%clk 0:00:04]} 48. Ke1 {[%clk 0:00:04]}  Qh3 {[%clk 0:00:05]} 49. Kf2 {[%clk 0:00:04]}  Qxh4+ {[%clk 0:00:05]} 50. Kf1 {[%clk 0:00:04]}  Qh3+ {[%clk 0:00:05]} 51. Ke1 {[%clk 0:00:05]}  Qh1+ {[%clk 0:00:06]} 52. Kf2 {[%clk 0:00:05]}  Rf3# {[%clk 0:00:06]} 0-1


[Site "https://www.chess.com"]

[Event "Titled Tuesday Blitz March 07 Early 2023"]
[White "Leiva, Gianmarco"]
[Black "Tsydypov, Zhamsaran"]
[WhiteFideId "3804399"]
[BlackFideId "4108566"]
[WhiteElo "2345"]
[BlackElo "2584"]
[Result "0-1"]
[Round "02"]
[TimeControl "180+2"]
[Date "2023.03.07"]
[WhiteClock "0:00:02"]
[BlackClock "0:01:20"]

1. e4 {[%clk 0:03:00]}  c5 {[%clk 0:02:57]} 2. Nf3 {[%clk 0:03:01]}  e6 {[%clk 0:02:57]} 3. b3 {[%clk 0:02:58]}  a6 {[%clk 0:02:56]} 4. Bb2 {[%clk 0:02:57]}  b5 {[%clk 0:02:56]} 5. a4 {[%clk 0:02:58]}  b4 {[%clk 0:02:55]} 6. e5 {[%clk 0:02:49]}  Bb7 {[%clk 0:02:55]} 7. d3 {[%clk 0:02:49]}  Ne7 {[%clk 0:02:54]} 8. Nbd2 {[%clk 0:02:49]}  Nf5 {[%clk 0:02:50]} 9. Ne4 {[%clk 0:02:46]}  Qc7 {[%clk 0:02:42]} 10. g3 {[%clk 0:02:37]}  d5 {[%clk 0:02:41]} 11. exd6 {[%clk 0:02:37]}  Nxd6 {[%clk 0:02:41]} 12. Nxd6+ {[%clk 0:02:37]}  Qxd6 {[%clk 0:02:42]} 13. Bg2 {[%clk 0:02:38]}  Nd7 {[%clk 0:02:42]} 14. O-O {[%clk 0:02:38]}  Bd5 {[%clk 0:02:39]} 15. Nd2 {[%clk 0:02:36]}  f6 {[%clk 0:02:33]} 16. Nc4 {[%clk 0:02:32]}  Qc6 {[%clk 0:02:32]} 17. Ne3 {[%clk 0:01:57]}  Bxg2 {[%clk 0:02:30]} 18. Nxg2 {[%clk 0:01:58]}  Bd6 {[%clk 0:02:28]} 19. Re1 {[%clk 0:01:37]}  e5 {[%clk 0:02:28]} 20. Nh4 {[%clk 0:01:34]}  g6 {[%clk 0:02:24]} 21. Qf3 {[%clk 0:01:33]}  Qxf3 {[%clk 0:02:23]} 22. Nxf3 {[%clk 0:01:34]}  Kf7 {[%clk 0:02:23]} 23. Nd2 {[%clk 0:01:30]}  Rhe8 {[%clk 0:02:22]} 24. Nc4 {[%clk 0:01:30]}  Bc7 {[%clk 0:02:23]} 25. a5 {[%clk 0:01:31]}  Nf8 {[%clk 0:02:23]} 26. Bc1 {[%clk 0:01:30]}  Ne6 {[%clk 0:02:23]} 27. Be3 {[%clk 0:01:30]}  Red8 {[%clk 0:02:23]} 28. f3 {[%clk 0:01:30]}  Rab8 {[%clk 0:02:23]} 29. Kg2 {[%clk 0:01:31]}  Rb5 {[%clk 0:02:23]} 30. g4 {[%clk 0:01:29]}  Rd5 {[%clk 0:02:23]} 31. h3 {[%clk 0:01:29]}  Nd4 {[%clk 0:02:22]} 32. Bxd4 {[%clk 0:01:29]}  cxd4 {[%clk 0:02:23]} 33. Ra2 {[%clk 0:01:27]}  f5 {[%clk 0:02:17]} 34. Rf1 {[%clk 0:01:25]}  Kf6 {[%clk 0:02:17]} 35. Re1 {[%clk 0:01:24]}  h5 {[%clk 0:02:16]} 36. gxh5 {[%clk 0:01:21]}  gxh5 {[%clk 0:02:16]} 37. h4 {[%clk 0:01:22]}  Rd8 {[%clk 0:02:16]} 38. Kh3 {[%clk 0:01:22]}  Rg8 {[%clk 0:02:16]} 39. Raa1 {[%clk 0:01:22]}  e4 {[%clk 0:02:12]} 40. Rg1 {[%clk 0:01:16]}  Rxg1 {[%clk 0:02:11]} 41. Rxg1 {[%clk 0:01:17]}  e3 {[%clk 0:02:12]} 42. Kg2 {[%clk 0:00:49]}  Rb8 {[%clk 0:01:45]} 43. Kf1 {[%clk 0:00:50]}  Bh2 {[%clk 0:01:33]} 44. Rg5 {[%clk 0:00:45]}  Bf4 {[%clk 0:01:34]} 45. Rg2 {[%clk 0:00:35]}  Re8 {[%clk 0:01:34]} 46. Nb6 {[%clk 0:00:34]}  Kf7 {[%clk 0:01:30]} 47. Nd5 {[%clk 0:00:32]}  Bd6 {[%clk 0:01:29]} 48. Nb6 {[%clk 0:00:28]}  Be7 {[%clk 0:01:27]} 49. Nd5 {[%clk 0:00:10]}  Bxh4 {[%clk 0:01:27]} 50. Rh2 {[%clk 0:00:10]}  Bg3 {[%clk 0:01:26]} 51. Re2 {[%clk 0:00:04]}  f4 {[%clk 0:01:24]} 52. Kg2 {[%clk 0:00:04]}  Rb8 {[%clk 0:01:23]} 53. Nc7 {[%clk 0:00:04]}  Rb7 {[%clk 0:01:20]} 54. Nxa6 {[%clk 0:00:01]}  Rb5 {[%clk 0:01:21]} 55. Nc7 {[%clk 0:00:01]}  Rxa5 {[%clk 0:01:21]} 56. Kh3 {[%clk 0:00:01]}  Ke7 {[%clk 0:01:20]} 57. c4 {[%clk 0:00:01]}  dxc3 {[%clk 0:01:20]} 58. d4 {[%clk 0:00:02]}  Kd7 {[%clk 0:01:20]} 0-1


[Site "https://www.chess.com"]

[Event "Titled Tuesday Blitz March 07 Early 2023"]
[White "Kamsky, Gata"]
[Black "Jimenez Almeida, Luis David"]
[WhiteFideId "2000024"]
[BlackFideId "22242244"]
[WhiteElo "2666"]
[BlackElo "2245"]
[Result "1-0"]
[Round "02"]
[TimeControl "180+2"]
[Date "2023.03.07"]
[WhiteClock "0:01:41"]
[BlackClock "0:01:50"]

1. d4 {[%clk 0:03:00]}  g6 {[%clk 0:02:58]} 2. c3 {[%clk 0:02:59]}  Bg7 {[%clk 0:02:56]} 3. Nf3 {[%clk 0:02:58]}  Nf6 {[%clk 0:02:52]} 4. Bf4 {[%clk 0:02:55]}  O-O {[%clk 0:02:52]} 5. Nbd2 {[%clk 0:02:53]}  d5 {[%clk 0:02:52]} 6. e3 {[%clk 0:02:52]}  c5 {[%clk 0:02:52]} 7. h3 {[%clk 0:02:51]}  Nc6 {[%clk 0:02:52]} 8. Be2 {[%clk 0:02:49]}  Nd7 {[%clk 0:02:53]} 9. O-O {[%clk 0:02:42]}  e5 {[%clk 0:02:53]} 10. dxe5 {[%clk 0:02:40]}  Ndxe5 {[%clk 0:02:54]} 11. Nxe5 {[%clk 0:02:40]}  Nxe5 {[%clk 0:02:55]} 12. Nf3 {[%clk 0:02:41]}  Nc6 {[%clk 0:02:55]} 13. Qb3 {[%clk 0:02:38]}  b6 {[%clk 0:02:54]} 14. Rfd1 {[%clk 0:02:37]}  Be6 {[%clk 0:02:52]} 15. Ng5 {[%clk 0:02:35]}  Qe7 {[%clk 0:02:42]} 16. Qa4 {[%clk 0:01:57]}  Ne5 {[%clk 0:02:21]} 17. e4 {[%clk 0:01:46]}  dxe4 {[%clk 0:02:09]} 18. Nxe6 {[%clk 0:01:45]}  Qxe6 {[%clk 0:02:05]} 19. Qxe4 {[%clk 0:01:44]}  Rfe8 {[%clk 0:02:01]} 20. Bb5 {[%clk 0:01:43]}  Re7 {[%clk 0:01:50]} 21. Qxa8+ {[%clk 0:01:41]} 1-0


[Site "https://www.chess.com"]